bitfinex/quotes_BTCUSD_20220307
["timestamp","ask_amount","ask_price","bid_price","bid_amount"]
[1646674871445,0.24760271,38790.0,38786.0,0.1]
[1646674871632,0.702371,38789.0,38786.0,0.04994]
[1646674871829,0.402371,38788.0,38781.0,0.00326402]
[1646674872029,0.3,38787.0,38781.0,0.00026402]
[1646674872292,0.402371,38786.0,38781.0,0.00026402]
[1646674872490,0.402371,38786.0,38776.0,0.67017481]
[1646674872491,0.06393441,38782.0,38776.0,0.67017481]
[1646674872689,0.22373652,38778.0,38776.0,0.67017481]
[1646674872888,0.402371,38777.0,38776.0,0.67017481]
[1646674873692,0.0476,38778.0,38776.0,0.67017481]
[1646674874592,0.402371,38777.0,38776.0,0.67017481]
[1646674875293,0.849971,38777.0,38776.0,0.20870083]
[1646674875491,0.59702583,38775.0,38770.0,0.7]
[1646674875689,0.46768071,38773.0,38770.0,0.7]
[1646674875889,0.402371,38771.0,38770.0,0.7]
[1646674876127,0.73695253,38771.0,38770.0,0.7]
[1646674876325,0.73695253,38771.0,38770.0,0.70027546]
[1646674876824,0.83695253,38771.0,38770.0,0.70027546]
[1646674877322,0.83695253,38771.0,38770.0,0.7]
[1646674878425,0.549971,38771.0,38770.0,0.7]
[1646674879125,0.1476,38771.0,38770.0,0.7]
[1646674879328,0.0476,38771.0,38770.0,0.7]
[1646674879533,0.05,38774.0,38770.0,0.7]
[1646674879776,0.05,38774.0,38770.0,0.75]
[1646674881071,0.045,38774.0,38770.0,0.75027149]
[1646674881472,0.449971,38773.0,38770.0,0.70027149]
[1646674881672,0.449971,38773.0,38770.0,0.69527149]
[1646674881870,0.402371,38771.0,38770.0,0.69527149]
[1646674882070,0.402371,38771.0,38770.0,0.695]
[1646674882271,0.402371,38771.0,38770.0,0.69527149]
[1646674882673,0.0476,38773.0,38770.0,0.69527149]
[1646674882871,0.0476,38773.0,38770.0,0.74527149]
[1646674883272,0.0476,38773.0,38770.0,0.745]
[1646674883527,0.0476,38773.0,38772.0,0.16123203]
[1646674883729,0.045,38774.0,38772.0,0.21123203]
[1646674883926,0.402371,38773.0,38772.0,0.05]
[1646674884325,0.402371,38773.0,38770.0,0.74527149]
[1646674884524,0.402371,38773.0,38770.0,0.745]
[1646674884724,0.402371,38773.0,38771.0,0.00025526]
[1646674884926,0.57396004,38772.0,38771.0,0.00025526]
[1646674885429,0.63847704,38772.0,38771.0,0.00025526]
[1646674885726,0.73847704,38772.0,38770.0,0.745]
[1646674885926,0.402371,38771.0,38770.0,0.74525526]
[1646674886928,0.67012241,38771.0,38770.0,0.745]
[1646674887377,0.67012241,38771.0,38770.0,0.695]
[1646674888180,0.77012241,38771.0,38770.0,0.695]
[1646674889079,0.77012241,38771.0,38770.0,0.69147]
[1646674889482,0.81772241,38771.0,38770.0,0.69147]
[1646674892327,0.549971,38771.0,38770.0,0.69147]
[1646674892726,0.045,38774.0,38770.0,0.74147]
[1646674893327,0.045,38774.0,38773.0,0.15860666]
[1646674893526,0.01289,38783.0,38776.0,0.18438967]
[1646674893724,0.01289,38783.0,38773.0,0.15860666]
[1646674893725,0.402371,38782.0,38773.0,0.15860666]
[1646674893925,0.02577,38784.0,38773.0,0.20860666]
[1646674893926,0.05,38781.0,38773.0,0.20860666]
[1646674894125,0.402371,38780.0,38773.0,0.05]
[1646674894324,0.402371,38780.0,38776.0,0.00025626]
[1646674894980,0.15,38778.0,38776.0,0.00025626]
[1646674895282,1.236871,38777.0,38770.0,0.69147]
[1646674895483,0.402371,38772.0,38770.0,0.69147]
[1646674895679,0.449971,38771.0,38770.0,0.69147]
[1646674895878,0.549971,38771.0,38770.0,0.69147]
[1646674896484,0.1,38775.0,38770.0,0.69147]
[1646674896878,0.28632798,38779.0,38770.0,0.69147]
[1646674897079,0.402371,38778.0,38774.0,0.1654731]
[1646674897279,0.29294263,38782.0,38774.0,0.05]
[1646674897482,0.29294263,38782.0,38770.0,1.05260684]
[1646674897483,0.26944629,38781.0,38770.0,1.05260684]
[1646674897683,0.29521629,38781.0,38770.0,0.79147]
[1646674897882,0.26944629,38781.0,38776.0,0.00025626]
[1646674898185,0.402371,38780.0,38776.0,0.00025626]
[1646674898381,0.402371,38779.0,38776.0,0.00025626]
[1646674898622,0.502371,38779.0,38776.0,0.00025626]
[1646674899023,0.502371,38779.0,38770.0,0.74147]
[1646674899223,0.1,38779.0,38776.0,0.00025626]
[1646674899423,0.402371,38778.0,38776.0,0.00025626]
[1646674899647,0.402371,38780.0,38776.0,0.00025626]
[1646674899823,0.402371,38778.0,38776.0,0.00025626]
[1646674900226,0.1,38779.0,38773.0,0.20081619]
[1646674900424,0.1,38779.0,38775.0,0.00025626]
[1646674901023,0.402371,38780.0,38775.0,0.00025626]
[1646674901223,0.502371,38779.0,38775.0,0.00025626]
[1646674901523,0.05,38781.0,38776.0,0.00025626]
[1646674901723,0.402371,38779.0,38776.0,0.00025626]
[1646674901923,0.402371,38778.0,38776.0,0.00025626]
[1646674902576,0.25004,38781.0,38772.0,0.27270577]
[1646674902577,0.05,38781.0,38772.0,0.27270577]
[1646674902777,0.402371,38780.0,38775.0,0.00025626]
[1646674903575,0.402371,38778.0,38775.0,0.00025626]
[1646674903774,0.402371,38778.0,38772.0,0.05]
[1646674903975,0.402371,38777.0,38776.0,0.00025626]
[1646674904976,0.402371,38777.0,38770.0,0.74147]
[1646674905175,0.05,38781.0,38775.0,0.00025246]
[1646674905377,0.402371,38780.0,38776.0,0.1728279]
[1646674905780,0.05,38781.0,38777.0,0.51839471]
[1646674906031,0.00025239,38786.0,38781.0,0.1]
[1646674906229,0.5939,38791.0,38781.0,0.15]
[1646674906230,0.21077765,38790.0,38781.0,0.15]
[1646674906426,0.402371,38789.0,38781.0,0.15]
[1646674906626,0.00025243,38786.0,38781.0,0.15]
[1646674906827,0.00025243,38786.0,38782.0,0.20681549]
[1646674907127,0.00025243,38786.0,38781.0,0.1]
[1646674907327,0.402371,38785.0,38781.0,0.1]
[1646674907528,0.402371,38783.0,38781.0,0.10025247]
[1646674907926,0.402371,38782.0,38781.0,0.10025247]
[1646674908130,0.70154002,38782.0,38781.0,0.10025247]
[1646674908334,1.11600503,38782.0,38781.0,0.10025247]
[1646674908530,1.11600503,38782.0,38781.0,0.1]
[1646674910580,1.11600503,38782.0,38781.0,0.09989373]
[1646674911183,1.11600503,38782.0,38781.0,0.09978766]
[1646674911384,1.11600503,38782.0,38781.0,0.29978766]
[1646674911582,1.11600503,38782.0,38781.0,0.49978766]
[1646674912282,0.81921637,38782.0,38781.0,0.69978766]
[1646674912881,1.60611637,38782.0,38781.0,0.69978766]
[1646674913083,0.81921637,38782.0,38781.0,0.69978766]
[1646674913528,0.96921637,38782.0,38781.0,0.69978766]
[1646674914523,0.23973801,38781.0,38780.0,0.00025659]
[1646674914832,0.23973801,38781.0,38775.0,1.4]
[1646674914833,0.2,38777.0,38775.0,0.95325568]
[1646674915025,1.699761,38776.0,38775.0,0.95325568]
[1646674915324,2.22947311,38776.0,38775.0,0.95325568]
[1646674915525,1.21910087,38776.0,38775.0,0.95325568]
[1646674915935,1.13362787,38776.0,38775.0,0.95325568]
[1646674916127,0.78891658,38776.0,38775.0,0.95325568]
[1646674916724,0.614498,38776.0,38775.0,0.95325568]
[1646674917383,0.914498,38776.0,38775.0,0.95325568]
[1646674917578,0.914498,38776.0,38775.0,0.95109839]
[1646674917876,1.11171398,38776.0,38775.0,0.95109839]
[1646674918879,0.614498,38776.0,38775.0,0.95109839]
[1646674919278,0.914498,38776.0,38775.0,0.95109839]
[1646674919679,0.914498,38776.0,38775.0,0.94892206]
[1646674919880,1.1272521,38776.0,38775.0,0.94892206]
[1646674920481,1.41447615,38776.0,38775.0,0.94892206]
[1646674921542,1.79255412,38776.0,38775.0,0.94892206]
[1646674921730,2.62945412,38776.0,38775.0,0.94892206]
[1646674921930,2.63150614,38776.0,38775.0,0.94892206]
[1646674922131,0.527388,38776.0,38775.0,0.94892206]
[1646674922331,0.466898,38776.0,38775.0,0.94892206]
[1646674922532,0.514498,38776.0,38775.0,0.94892206]
[1646674922934,1.51646054,38776.0,38775.0,0.94892206]
[1646674923233,2.3471402,38776.0,38775.0,0.94892206]
[1646674923537,2.16499499,38776.0,38775.0,0.94892206]
[1646674923736,2.09993245,38776.0,38775.0,0.94892206]
[1646674923933,1.03170227,38776.0,38775.0,0.94892206]
[1646674924136,0.614498,38776.0,38775.0,0.94892206]
[1646674924543,0.549971,38776.0,38775.0,0.94892206]
[1646674924787,0.402371,38776.0,38775.0,0.94892206]
[1646674924983,0.402371,38776.0,38775.0,1.36702169]
[1646674925185,6e-05,38779.0,38775.0,1.36702169]
[1646674925386,6e-05,38779.0,38775.0,1.41702169]
[1646674925595,6e-05,38779.0,38775.0,1.50899169]
[1646674925784,6e-05,38779.0,38775.0,1.58251169]
[1646674925989,6e-05,38779.0,38776.0,0.07103712]
[1646674926190,6e-05,38779.0,38776.0,0.29680712]
[1646674926988,6e-05,38779.0,38776.0,0.29705394]
[1646674927391,6e-05,38779.0,38778.0,0.17577]
[1646674927788,6e-05,38779.0,38778.0,0.22577]
[1646674928544,0.00024675,38786.0,38783.0,0.090238]
[1646674928744,0.00024675,38786.0,38785.0,0.15]
[1646674928945,0.00024675,38786.0,38785.0,0.17577]
[1646674929144,0.00024675,38786.0,38785.0,0.22577]
[1646674929345,0.0011,38794.0,38789.0,0.21525445]
[1646674929541,0.0011,38794.0,38789.0,0.24102445]
[1646674929741,0.402371,38793.0,38789.0,0.34102445]
[1646674929944,0.402371,38793.0,38789.0,0.56667661]
[1646674930143,0.0011,38794.0,38789.0,0.56667661]
[1646674930343,0.0011,38794.0,38789.0,0.59957661]
[1646674930947,0.00025619,38793.0,38791.0,0.15]
[1646674931158,0.00025619,38793.0,38792.0,0.45]
[1646674931344,0.00025619,38793.0,38792.0,0.25]
[1646674931544,0.0011,38794.0,38792.0,0.25]
[1646674931948,0.0013565,38794.0,38792.0,0.25]
[1646674932144,0.0013565,38794.0,38793.0,0.02577]
[1646674932583,0.0013565,38794.0,38792.0,0.1]
[1646674932784,0.0011,38794.0,38791.0,0.05]
[1646674932994,0.0011,38794.0,38790.0,0.05869764]
[1646674933184,0.0011,38794.0,38791.0,0.02577]
[1646674933583,0.0011,38794.0,38790.0,0.00869764]
[1646674934192,0.0011,38794.0,38793.0,0.15]
[1646674934389,0.0013565,38794.0,38793.0,0.15]
[1646674935186,0.0013565,38794.0,38793.0,0.02577]
[1646674935187,0.0011,38794.0,38793.0,0.02577]
[1646674935489,0.0011,38794.0,38793.0,0.05]
[1646674935688,0.0011,38794.0,38792.0,0.05]
[1646674936146,0.0011,38797.0,38796.0,0.00242463]
[1646674936945,0.0011,38797.0,38796.0,0.34072265]
[1646674937149,0.0011,38797.0,38796.0,0.44072265]
[1646674937746,0.0011,38797.0,38796.0,0.74072265]
[1646674937946,0.0011,38797.0,38796.0,0.96292158]
[1646674938147,0.0011,38797.0,38796.0,0.98869158]
[1646674938347,0.00044848,38804.0,38796.0,1.04867441]
[1646674938547,0.00044848,38804.0,38800.0,0.02577]
[1646674938747,0.00044848,38804.0,38800.0,0.32577]
[1646674938949,0.0011,38811.0,38799.0,0.05]
[1646674939150,0.0011,38811.0,38800.0,0.05]
[1646674939348,0.0011,38811.0,38796.0,0.17422108]
[1646674939349,0.402371,38802.0,38796.0,0.17422108]
[1646674939550,0.17491238,38805.0,38796.0,0.17422108]
[1646674939790,0.28490305,38807.0,38796.0,0.22422108]
[1646674940087,0.28490305,38807.0,38797.0,0.02577]
[1646674940287,0.5568,38809.0,38799.0,0.02577]
[1646674940589,0.5568,38809.0,38798.0,0.41046389]
[1646674940788,0.0011,38811.0,38798.0,0.26046389]
[1646674940985,0.0011,38811.0,38799.0,0.06444]
[1646674941187,0.0011,38811.0,38802.0,0.16128759]
[1646674941389,0.2905998,38809.0,38802.0,0.28705759]
[1646674941788,0.2905998,38809.0,38796.0,0.00242463]
[1646674942091,0.402371,38800.0,38796.0,0.00242463]
[1646674942291,0.402371,38798.0,38796.0,0.00242463]
[1646674942688,0.0476,38799.0,38796.0,0.00242463]
[1646674943090,0.00027551,38800.0,38796.0,0.00242463]
[1646674943727,0.0011,38803.0,38796.0,0.00242463]
[1646674943928,0.00027551,38800.0,38796.0,0.00242463]
[1646674944131,0.0011,38811.0,38799.0,0.15]
[1646674944330,0.0011,38811.0,38806.0,0.02577]
[1646674944533,0.0011,38811.0,38806.0,0.540195]
[1646674944730,0.0011,38811.0,38808.0,0.02577]
[1646674944933,0.0011,38811.0,38808.0,0.090202]
[1646674945330,0.0011,38811.0,38808.0,0.164432]
[1646674945727,0.0011,38811.0,38804.0,0.128854]
[1646674945934,0.0011,38811.0,38795.0,1.04892206]
[1646674945935,0.449971,38809.0,38795.0,0.94892206]
[1646674946231,0.449971,38809.0,38788.0,0.906415]
[1646674946232,0.402371,38803.0,38799.0,0.94892206]
[1646674946432,0.402371,38800.0,38799.0,0.94892206]
[1646674947031,0.749971,38800.0,38799.0,0.94892206]
[1646674947311,0.449971,38800.0,38799.0,0.94892206]
[1646674948110,0.849971,38800.0,38799.0,0.94892206]
[1646674949617,0.449971,38800.0,38799.0,0.94892206]
[1646674949817,0.449971,38800.0,38799.0,0.99892206]
[1646674950020,0.402371,38800.0,38799.0,0.99892206]
[1646674950223,0.402371,38803.0,38799.0,0.99892206]
[1646674950619,0.18484966,38804.0,38799.0,0.99892206]
[1646674951031,0.402371,38803.0,38799.0,0.99892206]
[1646674951238,0.18484966,38804.0,38800.0,0.00027577]
[1646674951833,0.18099083,38808.0,38800.0,0.30027577]
[1646674951834,0.00027571,38808.0,38800.0,0.30027577]
[1646674952035,0.00027571,38808.0,38800.0,0.32604577]
[1646674952234,0.0011,38810.0,38800.0,0.32577]
[1646674952639,0.00011118,38808.0,38800.0,0.32577]
[1646674952835,0.00011118,38808.0,38803.0,0.20089331]
[1646674953036,0.00011118,38808.0,38804.0,0.05]
[1646674953435,0.0011,38810.0,38804.0,0.07577]
[1646674953637,0.00011118,38808.0,38804.0,0.07577]
[1646674954237,0.00011118,38808.0,38804.0,0.37577]
[1646674954635,0.0011,38810.0,38804.0,0.37577]
[1646674954885,0.00011118,38808.0,38804.0,0.37577]
[1646674955291,0.00011118,38808.0,38804.0,0.52577]
[1646674955786,0.0011,38810.0,38805.0,0.09019933]
[1646674955987,0.00027555,38808.0,38807.0,0.02577]
[1646674956386,0.00027555,38808.0,38806.0,0.114434]
[1646674956985,0.0011,38810.0,38806.0,0.114434]
[1646674957187,0.0011,38810.0,38806.0,0.05]
[1646674957386,0.00027555,38809.0,38806.0,0.05]
[1646674957587,0.402371,38808.0,38806.0,0.05]
[1646674958287,0.3011,38810.0,38800.0,0.29630122]
[1646674958547,0.00027555,38809.0,38803.0,0.00027559]
[1646674959346,0.402371,38808.0,38803.0,0.00027559]
[1646674959542,0.3,38807.0,38803.0,0.000276]
[1646674959743,0.00027597,38808.0,38803.0,0.000276]
[1646674959942,0.16151797,38805.0,38803.0,0.000276]
[1646674960348,0.00027597,38808.0,38803.0,0.000276]
[1646674960650,0.0011,38810.0,38800.0,0.74946909]
[1646674960844,0.00025649,38808.0,38803.0,9e-05]
[1646674961744,0.0011,38810.0,38803.0,0.05009]
[1646674961943,0.0011,38810.0,38803.0,0.05034653]
[1646674962143,0.0011,38810.0,38803.0,0.00034653]
[1646674962144,0.00025649,38808.0,38803.0,0.00034653]
[1646674962583,0.00025649,38808.0,38804.0,0.090209]
[1646674962783,0.00025649,38808.0,38806.0,0.02577]
[1646674962988,0.0011,38810.0,38807.0,0.08375456]
[1646674963182,0.0011,38810.0,38809.0,0.02577]
[1646674963386,0.0001,38810.0,38809.0,0.09486]
[1646674963584,0.0001,38810.0,38809.0,0.39486]
[1646674963785,0.0011,38813.0,38811.0,0.02577]
[1646674963984,0.0011,38813.0,38811.0,0.52207122]
[1646674964185,0.0005,38817.0,38814.0,0.02577]
[1646674964384,0.0005,38817.0,38816.0,0.17566098]
[1646674964585,0.0005,38817.0,38815.0,0.19462436]
[1646674964784,0.0005,38817.0,38816.0,0.05]
[1646674964986,0.0005,38817.0,38816.0,0.35]
[1646674965184,0.0005,38817.0,38816.0,0.05]
[1646674965589,0.0005,38817.0,38815.0,0.18338407]
[1646674965786,0.0005,38817.0,38815.0,0.15761407]
[1646674966240,0.0011,38822.0,38818.0,0.00562368]
[1646674968439,0.0011,38822.0,38818.0,0.03139368]
[1646674968839,0.0011,38822.0,38818.0,0.00562368]
[1646674970483,0.00027699,38820.0,38818.0,0.03139368]
[1646674971083,0.00027699,38820.0,38818.0,0.00562368]
[1646674971482,0.0011,38822.0,38818.0,0.00562368]
[1646674971685,0.00026023,38820.0,38818.0,0.00562368]
[1646674972085,0.00026023,38820.0,38818.0,0.30571368]
[1646674972287,0.0001,38819.0,38818.0,0.90571368]
[1646674972485,0.0001,38819.0,38818.0,0.98148368]
[1646674972686,0.0001,38819.0,38818.0,1.17774272]
[1646674972886,0.0011,38822.0,38818.0,1.48244272]
[1646674972887,0.00026023,38820.0,38818.0,1.48244272]
[1646674973086,0.00026023,38820.0,38819.0,0.39016945]
[1646674973285,0.00104078,38826.0,38820.0,1.52577]
[1646674973553,0.00104078,38826.0,38825.0,0.18047]
[1646674973737,0.00104078,38826.0,38825.0,0.45018808]
[1646674973738,4.078e-05,38826.0,38825.0,0.45018808]
[1646674973937,0.0011,38833.0,38825.0,0.38047]
[1646674974137,0.00036837,38828.0,38825.0,0.744862]
[1646674974338,0.00872837,38841.0,38829.0,0.02577]
[1646674974539,0.0011,38842.0,38830.0,0.02577]
[1646674974741,0.0011,38842.0,38830.0,0.01512]
[1646674974939,0.0056,38848.0,38838.0,1.5]
[1646674975141,0.0056,38848.0,38839.0,0.28931]
[1646674975342,0.00044256,38844.0,38839.0,0.28528346]
[1646674975541,0.00104256,38848.0,38841.0,0.02577]
[1646674975740,0.00104256,38848.0,38839.0,0.178738]
[1646674975941,0.00104256,38848.0,38840.0,0.05]
[1646674976342,0.00104256,38848.0,38845.0,0.17485923]
[1646674976546,0.00232361,38850.0,38846.0,0.02577]
[1646674976741,0.00122361,38850.0,38847.0,0.65]
[1646674976940,0.00122361,38850.0,38845.0,0.46793123]
[1646674977141,0.00122361,38850.0,38845.0,0.33922123]
[1646674977586,0.00122361,38850.0,38846.0,0.02577]
[1646674978186,0.00122361,38850.0,38846.0,0.154477]
[1646674978386,0.00122361,38850.0,38847.0,0.3]
[1646674978587,0.00122361,38850.0,38849.0,0.090126]
[1646674978888,0.00122361,38850.0,38849.0,0.190126]
[1646674980088,0.00122361,38850.0,38849.0,0.164356]
[1646674980590,0.00122361,38850.0,38849.0,0.319056]
[1646674980788,0.00122361,38850.0,38849.0,0.05]
[1646674981040,0.00122361,38850.0,38845.0,0.94892206]
[1646674981041,0.21678993,38846.0,38845.0,0.94892206]
[1646674981244,0.402371,38849.0,38845.0,0.94892206]
[1646674981444,0.61073043,38846.0,38845.0,0.94892206]
[1646674981738,0.20734248,38846.0,38845.0,0.94892206]
[1646674981939,0.00122361,38850.0,38845.0,0.94892206]
[1646674982342,0.402371,38849.0,38845.0,0.94892206]
[1646674982741,0.21852064,38847.0,38845.0,0.94892206]
[1646674982944,0.402371,38846.0,38845.0,0.94892206]
[1646674983143,0.00027704,38849.0,38845.0,0.94892206]
[1646674983545,0.00122361,38850.0,38846.0,0.3]
[1646674983744,0.00027704,38849.0,38846.0,0.06436244]
[1646674983947,0.00027704,38849.0,38847.0,0.1950838]
[1646674984343,0.00027704,38849.0,38847.0,0.2950838]
[1646674984645,0.00122361,38850.0,38848.0,0.3]
[1646674984886,0.00122361,38850.0,38847.0,0.3582838]
[1646674985083,0.00133343,38850.0,38848.0,0.15]
[1646674985482,0.00133343,38850.0,38849.0,0.0553121]
[1646674985683,0.00133343,38850.0,38849.0,0.1196621]
[1646674985882,0.00122361,38850.0,38849.0,0.1696621]
[1646674986082,0.00122361,38850.0,38849.0,0.11435]
[1646674986486,0.00122361,38850.0,38849.0,0.41435]
[1646674986683,0.00122361,38850.0,38849.0,0.11435]
[1646674986885,0.00122361,38850.0,38849.0,0.37960424]
[1646674987286,0.00122361,38850.0,38849.0,0.50537424]
[1646674987488,0.00122361,38850.0,38849.0,0.71801]
[1646674987687,0.00122361,38850.0,38849.0,0.41801]
[1646674987887,0.00122361,38850.0,38849.0,0.96413486]
[1646674988084,0.00122361,38850.0,38849.0,0.66413486]
[1646674988552,0.3,38863.0,38849.0,0.66413486]
[1646674988553,0.04834881,38864.0,38860.0,0.06464817]
[1646674988749,0.04834881,38864.0,38861.0,0.42337]
[1646674988945,0.011101,38871.0,38861.0,0.0476]
[1646674989152,0.011101,38871.0,38850.0,0.92509453]
[1646674989153,0.006101,38871.0,38850.0,0.92509453]
[1646674989441,0.20354261,38864.0,38850.0,0.92504958]
[1646674989643,0.20354261,38864.0,38857.0,0.064343]
[1646674989842,0.26264213,38866.0,38850.0,0.62504958]
[1646674989843,0.18872585,38858.0,38850.0,0.49365958]
[1646674990050,0.18872585,38858.0,38850.0,0.19607991]
[1646674990242,0.428141,38857.0,38849.0,0.6]
[1646674990443,0.402371,38854.0,38849.0,0.6]
[1646674990649,0.0476,38853.0,38849.0,0.6]
[1646674990841,0.0476,38853.0,38848.0,9e-05]
[1646674990842,0.29110356,38853.0,38848.0,9e-05]
[1646674991047,0.64594,38861.0,38848.0,9e-05]
[1646674991048,0.17432947,38852.0,38848.0,9e-05]
[1646674991349,0.00011057,38855.0,38848.0,9e-05]
[1646674991541,0.00011057,38855.0,38847.0,0.064357]
[1646674991542,0.00011057,38855.0,38851.0,9e-05]
[1646674991943,0.3,38861.0,38851.0,9e-05]
[1646674992143,0.18208164,38858.0,38851.0,9e-05]
[1646674992389,0.00027215,38855.0,38851.0,9e-05]
[1646674993190,0.28905945,38859.0,38851.0,9e-05]
[1646674993490,0.00027215,38855.0,38851.0,9e-05]
[1646674993893,0.402278,38854.0,38851.0,9e-05]
[1646674994091,0.00027215,38855.0,38851.0,9e-05]
[1646674994394,0.02577,38857.0,38851.0,9e-05]
[1646674994588,0.31285,38860.0,38851.0,9e-05]
[1646674994789,0.00027215,38854.0,38851.0,9e-05]
[1646674995589,0.30108845,38860.0,38851.0,9e-05]
[1646674995590,0.3476,38860.0,38851.0,9e-05]
[1646674995792,0.00026628,38854.0,38851.0,9e-05]
[1646674996246,0.18410601,38854.0,38851.0,9e-05]
[1646674996449,0.749878,38853.0,38851.0,9e-05]
[1646674996645,0.3,38852.0,38851.0,9e-05]
[1646674996845,0.449878,38852.0,38851.0,9e-05]
[1646674997246,0.66610967,38852.0,38851.0,9e-05]
[1646674997646,0.0476,38852.0,38851.0,9e-05]
[1646674997847,0.00010553,38854.0,38851.0,9e-05]
[1646674998046,0.1,38861.0,38851.0,9e-05]
[1646674998246,0.00010553,38853.0,38851.0,9e-05]
[1646674998448,0.402278,38852.0,38851.0,9e-05]
[1646674998646,0.00010553,38853.0,38851.0,9e-05]
[1646674999046,0.25410879,38859.0,38853.0,0.00021106]
[1646674999247,0.402278,38858.0,38853.0,0.00021106]
[1646674999447,0.18133371,38855.0,38853.0,0.00080267]
[1646674999886,0.402278,38854.0,38853.0,0.00080267]
[1646675000286,0.36932225,38862.0,38853.0,0.00080267]
[1646675000287,0.402278,38860.0,38853.0,0.00080267]
[1646675000487,0.402278,38856.0,38853.0,0.00080267]
[1646675000686,0.402278,38855.0,38853.0,0.00080267]
[1646675000886,0.402278,38854.0,38853.0,0.00080267]
[1646675001685,0.402278,38854.0,38853.0,0.00089267]
[1646675001987,0.402278,38854.0,38853.0,0.00080267]
[1646675002592,0.02577,38852.0,38833.0,0.22413874]
[1646675002786,0.02577,38844.0,38833.0,0.22413874]
[1646675002986,0.23593542,38838.0,38824.0,0.0644]
[1646675003185,0.0476,38837.0,38832.0,0.0002794]
[1646675003386,0.0476,38836.0,38832.0,0.0002794]
[1646675003638,0.18845129,38839.0,38832.0,0.0002794]
[1646675003639,0.0476,38837.0,38832.0,0.0002794]
[1646675003835,0.22042087,38840.0,38832.0,0.0002794]
[1646675003836,0.0476,38840.0,38832.0,0.0002794]
[1646675004236,0.0476,38840.0,38828.0,0.38684528]
[1646675004437,0.3,38839.0,38832.0,0.00027939]
[1646675004637,0.32577,38839.0,38832.0,0.00027939]
[1646675004840,0.19614431,38839.0,38832.0,0.00027939]
[1646675005037,0.3,38838.0,38832.0,0.00027939]
[1646675005437,0.3,38838.0,38825.0,0.0644]
[1646675005639,0.3,38838.0,38832.0,0.00027938]
[1646675005836,0.16497375,38836.0,38832.0,0.00027938]
[1646675006438,0.15997375,38836.0,38832.0,0.00027938]
[1646675006639,0.3,38838.0,38824.0,0.46712582]
[1646675006839,0.3,38838.0,38832.0,0.00027938]
[1646675007041,0.0476,38841.0,38832.0,0.00027938]
[1646675007310,0.3,38840.0,38832.0,0.00027938]
[1646675007513,0.02577,38839.0,38832.0,0.00027938]
[1646675007711,0.02577,38839.0,38828.0,0.05]
[1646675007712,0.18758335,38837.0,38828.0,0.05]
[1646675007910,0.3,38836.0,38832.0,0.00025718]
[1646675008312,0.58925914,38833.0,38832.0,0.00025718]
[1646675008613,0.88925914,38833.0,38832.0,0.00025718]
[1646675008811,0.63685914,38833.0,38832.0,0.00025718]
[1646675009010,0.02577,38832.0,38818.0,0.80177992]
[1646675009213,0.20899337,38828.0,38818.0,0.88085175]
[1646675009412,0.32577,38832.0,38820.0,0.15690526]
[1646675009614,0.0476,38835.0,38831.0,0.00025719]
[1646675010214,0.0476,38835.0,38823.0,0.12878968]
[1646675010414,0.0476,38835.0,38826.0,0.06439258]
[1646675010415,0.20813088,38835.0,38826.0,0.06439258]
[1646675010612,0.23390088,38835.0,38831.0,0.00025718]
[1646675010812,0.02577,38835.0,38831.0,0.00025718]
[1646675011242,0.3,38836.0,38831.0,0.00025718]
[1646675011442,0.3,38836.0,38820.0,0.28570796]
[1646675011443,0.952278,38836.0,38821.0,0.19615624]
[1646675011652,0.25311458,38832.0,38831.0,0.00024106]
[1646675011844,0.402278,38832.0,38831.0,0.00024106]
[1646675012146,0.949878,38832.0,38831.0,0.00024106]
[1646675012344,0.60872389,38832.0,38831.0,0.00024106]
[1646675012550,1.01100189,38832.0,38831.0,0.00024106]
[1646675012745,0.21385182,38825.0,38818.0,0.00562368]
[1646675012944,0.26395868,38824.0,38818.0,0.00562368]
[1646675013244,0.3,38830.0,38818.0,0.00562368]
[1646675013446,0.0476,38830.0,38818.0,0.07003168]
[1646675013646,0.3,38829.0,38818.0,0.07003168]
[1646675014042,0.3,38829.0,38824.0,1.72934855]
[1646675014244,0.3476,38830.0,38824.0,1.72934855]
[1646675014445,0.3476,38830.0,38822.0,0.00024312]
[1646675014446,0.402278,38829.0,38822.0,0.00024312]
[1646675014793,0.428048,38826.0,38822.0,0.00024312]
[1646675014991,0.4476,38828.0,38818.0,0.00562368]
[1646675014992,0.02577,38823.0,38818.0,0.00562368]
[1646675015195,0.402278,38821.0,38818.0,0.00562368]
[1646675015391,0.21032132,38821.0,38818.0,0.00562368]
[1646675015791,0.02577,38822.0,38818.0,0.00562368]
[1646675015991,0.02577,38826.0,38818.0,0.00562368]
[1646675016393,0.12577,38826.0,38818.0,0.00586842]
[1646675016594,0.02577,38824.0,38818.0,0.00586842]
[1646675016792,0.21491284,38823.0,38818.0,0.00586842]
[1646675016997,0.15662918,38826.0,38818.0,0.00586842]
[1646675017193,0.58330109,38832.0,38818.0,0.00586842]
[1646675017194,0.01287,38831.0,38818.0,0.00586842]
[1646675017393,0.26633387,38826.0,38818.0,0.00562368]
[1646675018094,0.29210387,38826.0,38818.0,0.00562368]
[1646675018296,0.63567027,38833.0,38818.0,0.45562368]
[1646675018297,0.01286,38833.0,38818.0,0.45562368]
[1646675018540,0.4506,38840.0,38819.0,0.1976]
[1646675018750,0.4506,38840.0,38822.0,0.15]
[1646675018939,0.4506,38840.0,38824.0,0.00024376]
[1646675019138,0.4506,38840.0,38828.0,0.064393]
[1646675019139,0.02577,38838.0,38828.0,0.064393]
[1646675019339,0.20101026,38835.0,38826.0,0.3657463]
[1646675019540,0.22678026,38835.0,38827.0,0.05]
[1646675020142,0.20101026,38835.0,38829.0,0.00025426]
[1646675021044,0.20101026,38835.0,38825.0,0.35356932]
[1646675021243,0.20101026,38835.0,38830.0,0.00025426]
[1646675022288,0.20101026,38835.0,38825.0,0.28916732]
[1646675022490,0.20101026,38835.0,38831.0,0.00025924]
[1646675022898,0.402278,38834.0,38831.0,0.00025924]
[1646675023197,0.47296439,38834.0,38831.0,0.00025924]
[1646675023391,0.402278,38832.0,38831.0,0.00025924]
[1646675023591,0.07068639,38834.0,38819.0,0.428811]